Cogmind - Beta 12 @@@ ROGUE MODE // 2023.03.06 @ 20:40:23 Player: Jamuson Result: Destroyed by P-60 Hacker with Shock Rifle Performance ------------- Evolutions (4) 2000 Regions Visited (11) 2200 Robots Destroyed (135) 675 Value Destroyed (4698) 4698 Prototype IDs (12) 240 Alien Tech Used (0) 0 Bonus (1179) 1179 TOTAL SCORE: 10992 Bonus ------- High Alert Combat Kills 186 Entered Garrisons 200 Used RIF Installer 500 Aligned with FarCom 300 Friendly Fire -7 Cogmind --------- Core Integrity 0/850 Matter 219/300 Energy 340/340 System Corruption 17% Temperature Cool (91) Movement Rolling (115) Ox1 Location -6/Factory Parts ------- > --- POWER (2) -------- Particle Reactor > --- PROPULSION (4) --- Armored Huge Wheel > --- UTILITY (7) ------ Large Storage Unit Advanced Weight Redist. System Melee Analysis Suite Improved Melee Analysis Suite > --- WEAPON (2) ------- Plasma Rifle Phase Cannon > --- INVENTORY (15) --- Machine Analyzer Advanced Melee Analysis Suite Advanced ECM Suite Improved Light Armor Plating Insulated Plating Hacking Suite Trap Reconfigurator Peak State ------------ > --- POWER ------------ Angular Momentum Engine Fission Core > --- PROPULSION ------- Armored Wheel Armored Wheel Armored Huge Wheel > --- UTILITY ---------- Large Storage Unit Advanced Weight Redist. System Improved Melee Analysis Suite Improved Target Analyzer Insulated Plating Focal Shield Thermal Shield > --- WEAPON ----------- Great Maul Great Maul > --- INVENTORY -------- Particle Reactor Particle Reactor Armored Huge Wheel Armored Huge Wheel Large Battery Machine Analyzer Advanced Melee Analysis Suite Advanced ECM Suite Improved Light Armor Plating Improved Light Armor Plating Hacking Suite Trap Reconfigurator Improved Grenade Launcher [Rating: 60] Favorites ----------- Power Improved Ion Engine Engine Improved Ion Engine Power Core Fission Core Reactor Particle Reactor Propulsion VSS Leg Treads Light Treads Leg VSS Leg Wheel Wheel Utility Large Storage Unit Device Trap Reconfigurator Storage Large Storage Unit Processor Improved Target Analyzer Hackware Hacking Suite Protection Hardened Light Armor Plating Weapon Great Maul Energy Gun Medium Laser Energy Cannon Phase Cannon Ballistic Gun Heavy Assault Rifle Ballistic Cannon Flak Cannon Launcher Rocket Launcher Special Weapon Remote Datajack Impact Weapon Great Maul Build | -11 -10 -10 -9 -9 -9 -8 -8 -7 -7 -7 -6 ------- Run | Jun Mat Min Mat Min Exi Min Mat Fac Gar Fac Fac Slots Evolved 8 | . . . 2 . . . 2 2 . . 2 Power 1 | . . . . . . . . 1 . . . Propulsion 2 | . . . . . . . 2 . . . . Utility 5 | . . . 2 . . . . 1 . . 2 Weapon . | . . . . . . . . . . . . Parts Attached 133 | . 14 1 28 1 1 . 18 5 41 3 21 Power 19 | . 2 . 5 . . . . 2 4 . 6 Engine 12 | . 2 . 5 . . . . 1 1 . 3 Core 3 | . . . . . . . . 1 1 . 1 Reactor 4 | . . . . . . . . . 2 . 2 Propulsion 29 | . 4 . 4 . . . 7 . 11 1 2 Treads 2 | . . . . . . . . . 2 . . Leg 16 | . 2 . . . . . 7 . 7 . . Wheel 11 | . 2 . 4 . . . . . 2 1 2 Hover . | . . . . . . . . . . . . Flight . | . . . . . . . . . . . . Utility 43 | . 5 . 8 . 1 . 3 2 14 2 8 Device 11 | . 1 . 1 . 1 . 1 . 3 . 4 Storage 5 | . 2 . 1 . . . . . 1 1 . Processor 9 | . 1 . 1 . . . 1 2 2 . 2 Hackware 1 | . . . . . . . . . 1 . . Protection 17 | . 1 . 5 . . . 1 . 7 1 2 Artifact . | . . . . . . . . . . . . Weapon 42 | . 3 1 11 1 . . 8 1 12 . 5 Energy Gun 6 | . 1 . 2 . . . . . 2 . 1 Energy Cannon 1 | . . . . . . . . . . . 1 Ballistic Gun 9 | . 1 . 7 . . . . . 1 . . Ballistic Cannon 1 | . . . . 1 . . . . . . . Launcher 10 | . 1 1 2 . . . 3 . 1 . 2 Special Weapon 1 | . . . . . . . . . 1 . . Impact Weapon 14 | . . . . . . . 5 1 7 . 1 Slashing Weapon . | . . . . . . . . . . . . Piercing Weapon . | . . . . . . . . . . . . Special Melee Weapon . | . . . . . . . . . . . . Unidentified Prototypes 3 | . . . 1 . 1 . . 1 . . . Corrupted Parts 6 | . . . . . . . . . 6 . . System Corruption 15 | . . . . . . . . . 15 . . Parts Lost 42 | . 2 . 6 . . . 2 1 18 . 13 Power 6 | . . . . . . . 1 . 3 . 2 Propulsion 17 | . 1 . 3 . . . . . 9 . 4 Utility 11 | . . . 3 . . . 1 . 3 . 4 Weapon 8 | . 1 . . . . . . 1 3 . 3 Highest Loss Streak 11 | . 1 . 4 . . . 1 1 7 . 11 To Critical Strikes . | . . . . . . . . . . . . Average Slot Usage (%) 90 | . 96 100 92 100 100 100 96 88 80 88 88 Engine 8 | . 14 14 11 11 11 11 8 7 3 7 6 Core 1 | . . . . . . . . . 2 . 4 Treads 1 | . . . . . . . . . 5 9 . Leg 13 | . 18 . . . . . 35 30 16 . . Wheel 10 | . 8 28 21 22 22 22 . . . 18 19 Device 5 | . 5 . 1 . 5 11 9 2 3 . 15 Storage 9 | . 14 14 11 11 11 11 9 7 8 7 6 Processor 10 | . 5 14 9 11 11 11 9 14 7 15 15 Protection 9 | . 1 . 16 22 16 11 6 7 10 15 6 Energy Gun 1 | . 9 . . . . . . . . . . Ballistic Gun 5 | . 11 4 19 13 11 11 . . . . . Launcher 1 | . 6 24 1 . . . . . . . . Impact Weapon 9 | . . . . . . . 17 15 13 15 12 Naked Turns . | . . . . . . . . . . . . Heaviest Build 90 | 13 90 33 42 44 44 42 43 46 59 48 59 Greatest Support 61 | 20 26 26 26 20 20 20 51 51 51 52 61 Greatest Overweight (x) 5 | . 5 1 2 2 2 2 1 1 4 1 3 Average Overweight (x) . | . . 1 1 2 2 2 . . . . . Largest Inventory Capacity 25 | . 25 15 15 15 15 15 15 15 15 15 15 Average Capacity 14 | . 11 15 15 15 15 15 15 15 15 15 15 Most Carried 15 | . 13 13 15 15 15 15 15 15 15 15 15 Average Carried 13 | . 7 12 14 15 15 15 13 14 12 13 14 Final Capacity 15 | 8 15 15 15 15 15 15 15 15 15 15 15 Final Carried 15 | 6 13 13 15 15 15 15 15 15 11 15 7 Class Distribution -------------------- 72% | Mutant 27% | Scavenger-Mutant Dominant Class ---------------- Scavenger-Mutant | -10/Materials Mutant | -10/Mines Mutant | -9/Materials Mutant | -9/Mines Mutant | -9/Exiles Mutant | -8/Mines Mutant | -8/Materials Mutant | -7/Factory Scavenger-Mutant | -7/Garrison Scavenger-Mutant | -7/Factory Mutant | -6/Factory Resources | -11 -10 -10 -9 -9 -9 -8 -8 -7 -7 -7 -6 ----------- Run | Jun Mat Min Mat Min Exi Min Mat Fac Gar Fac Fac Matter Collected 2657 | 200 355 15 858 49 . 40 325 38 533 . 244 Remotely . | . . . . . . . . . . . . Salvage Created 4739 | . 386 70 1095 49 . . 707 38 1468 . 926 Parts 237 | . 28 10 90 11 . . 33 1 37 . 27 Haulers Intercepted 7 | . . . 2 . . . 4 . . . 1 Recyclers Shooed 4 | . . . 1 . . . 1 . . . 2 Parts Field Recycled . | . . . . . . . . . . . . Retrieved Matter . | . . . . . . . . . . . . Parts Self-Destructed . | . . . . . . . . . . . . Prevented . | . . . . . . . . . . . . Kills | -11 -10 -10 -9 -9 -9 -8 -8 -7 -7 -7 -6 ------- Run | Jun Mat Min Mat Min Exi Min Mat Fac Gar Fac Fac Combat Hostiles Destroyed 102 | . 12 5 25 6 . . 21 1 17 . 15 Melee 15 | . . . . . . . 3 . 7 . 5 Guns 32 | . 8 . 20 1 . . . . 3 . . Cannons 6 | . . . . 5 . . . . . . 1 AOE 27 | . 3 5 5 . . . 10 . . . 4 Classes Destroyed 13 | . 3 1 4 . . . 2 1 . . 2 Worker 7 | . . 1 2 . . . 3 . . . 1 Builder 3 | . . . 1 . . . 1 . . . 1 Hauler 7 | . . . 2 . . . 4 . . . 1 Recycler 1 | . . . . . . . . . . . 1 Operator 1 | . . . . . . . 1 . . . . Watcher 14 | . 3 . 4 . . . 4 . . . 3 Swarmer 39 | . 6 3 9 6 . . 12 . . . 3 Grunt 34 | . 6 2 5 . . . 7 . 7 . 7 Brawler 1 | . . . 1 . . . . . . . . Duelist 1 | . . . . . . . 1 . . . . Sentry 18 | . . . 10 . . . 1 . 7 . . Hunter 1 | . . . . . . . . . . . 1 Programmer 8 | . . . . . . . . 1 3 . 4 Best Kill Streak 7 | . 6 4 5 3 . . 7 1 5 . 6 Combat Bots Only 5 | . 5 3 4 3 . . 4 1 5 . 3 Max Kills in Single Turn 5 | . 2 4 3 1 . . 5 1 1 . 2 Gunslinging 1 | . . . 1 . . . . . . . . Exploded 3 | . 2 3 2 . . . 2 . . . 2 Melee 1 | . . . . . . . 1 . 1 . 1 Uniques/NPCs Destroyed . | . . . . . . . . . . . . Combat | -11 -10 -10 -9 -9 -9 -8 -8 -7 -7 -7 -6 -------- Run | Jun Mat Min Mat Min Exi Min Mat Fac Gar Fac Fac Damage Taken 8003 | . 528 143 1008 209 . . 732 114 2181 82 3006 Core 1735 | . 122 51 162 18 . . 107 35 388 . 852 Absorbed by Shields 26 | . . . . . . . . . 26 . . Redirected to Shielding 106 | . 3 . . . . . 31 32 40 . . Regen/Repaired (Parts) 185 | . . . 43 . . . 142 . . . . Core Remaining (%) 60 | 100 . 30 . . . 55 80 . . 39 . Volleys Fired 187 | . 43 6 83 12 . . 9 . 22 . 12 Largest 2 | . 2 2 2 2 . . 1 . 1 . 1 Hottest 90 | . 90 66 79 67 . . 36 . 50 . 85 Shots Fired 316 | . 81 7 159 24 1 . 9 . 23 . 12 Gun 261 | . 79 . 153 12 . . . . 17 . . Cannon 19 | . . . . 12 1 . . . . . 6 Launcher 32 | . 2 7 6 . . . 9 . 2 . 6 Special 4 | . . . . . . . . . 4 . . Kinetic 199 | . 19 . 152 24 1 . . . 3 . . Thermal 60 | . 53 . 1 . . . . . . . 6 Explosive 32 | . 2 7 6 . . . 9 . 2 . 6 Electromagnetic 21 | . 7 . . . . . . . 14 . . Robot Hit Streak 22 | . 5 1 22 4 . . 1 . 6 . 8 Robot Miss Streak 7 | . 3 2 4 7 . . 3 . 4 . 1 Penetration Max . | . . . . . . . . . . . . Secondary Targets 4 | . . . 4 . . . . . . . . Max Gunslinging Chain 1 | . . . 1 . . . . . . . . Shots Hit Robots 319 | . 43 2 100 16 . . 33 2 78 . 45 Core Hits 165 | . 22 9 57 11 . . 26 . 20 . 20 Critical Kills 9 | . . . . . . . 1 . 4 . 4 Critical Parts Destroyed 37 | . . . 1 . . . 10 2 15 . 9 Critical Strikes 48 | . 1 . 1 . . . 11 2 20 . 13 Burn 1 | . 1 . . . . . . . . . . Destroy 1 | . . . 1 . . . . . . . . Smash 46 | . . . . . . . 11 2 20 . 13 Melee Attacks 188 | . . . . . . . 48 2 80 . 58 Impact 188 | . . . . . . . 48 2 80 . 58 Slashing . | . . . . . . . . . . . . Piercing . | . . . . . . . . . . . . Sneak Attacks 9 | . . . . . . . 5 . 1 . 3 Combat Hostiles 1 | . . . . . . . . . 1 . . Follow-up Attacks 21 | . . . . . . . 10 1 4 . 6 Damage Inflicted 12026 | . 660 415 1912 167 . . 2563 73 3358 . 2878 Guns 2195 | . 496 . 1392 42 . . . . 265 . . Cannons 280 | . . . . 125 . . . . . . 155 Explosions 2827 | . 164 415 520 . . . 975 . 62 . 691 Melee 6724 | . . . . . . . 1588 73 3031 . 2032 Ramming . | . . . . . . . . . . . . Kinetic 1732 | . 97 . 1392 167 . . . . 76 . . Thermal 541 | . 324 . . . . . . . 62 . 155 Explosive 2765 | . 164 415 520 . . . 975 . . . 691 Electromagnetic 264 | . 75 . . . . . . . 189 . . Impact 6724 | . . . . . . . 1588 73 3031 . 2032 Slashing . | . . . . . . . . . . . . Piercing . | . . . . . . . . . . . . Highest Corruption 21 | . . . 1 1 1 1 . 1 21 21 16 Average Corruption 6 | . . . 1 1 1 1 . 1 7 21 4 Corruption Purged . | . . . . . . . . . . . . Corruption Blocked . | . . . . . . . . . . . . Effects 100 | . . . 9 1 4 . . 1 52 15 18 Message Errors 20 | . . . 1 . 1 . . . 12 3 3 Matter Fused 26 | . . . 2 . 1 . . . 13 5 5 Heat Flow Errors 11 | . . . 4 . . . . . 3 2 2 Energy Discharges 12 | . . . . . . . . . 10 1 1 Parts Rejected 3 | . . . . . . . . . 1 . 2 Parts Fused 1 | . . . . . 1 . . . . . . Data Loss (minor) 17 | . . . 2 1 . . . 1 9 2 2 Data Loss (major) 4 | . . . . . . . . . 1 2 1 Misfires 2 | . . . . . 1 . . . 1 . . Alerts 3 | . . . . . . . . . 2 . 1 Misdirections 1 | . . . . . . . . . . . 1 Overload Shots . | . . . . . . . . . . . . Overflow Damage 2416 | . . . 3 . . . 610 73 1010 . 720 Projectiles 29 | . . . . . . . . . . . 29 Explosions 73 | . . . 3 . . . 48 . . . 22 Melee 2314 | . . . . . . . 562 73 1010 . 669 Knockbacks 33 | . . . . 5 . . 5 . 9 . 14 Impact 25 | . . . . . . . 4 . 8 . 13 Kinetic 5 | . . . . 5 . . . . . . . Secondary 3 | . . . . . . . 1 . 1 . 1 Self-Inflicted Damage 217 | . . 67 42 . . . 108 . . . . Shots 7 | . . 3 2 . . . 2 . . . . Rammed . | . . . . . . . . . . . . Targets Rammed . | . . . . . . . . . . . . Kicked . | . . . . . . . . . . . . Crushed . | . . . . . . . . . . . . Highest Temperature 361 | . 361 6 185 192 16 . . 1 255 216 213 Average Temperature 72 | . 130 3 24 82 8 . . 1 58 92 105 Received Heat Transfer 1771 | . 225 33 246 . . . 261 12 673 . 321 Effects 1 | . 1 . . . . . . . . . . Interference 1 | . 1 . . . . . . . . . . Siege Activations . | . . . . . . . . . . . . Robots Corrupted . | . . . . . . . . . . . . Combat Hostiles . | . . . . . . . . . . . . Parts Fried 44 | . 1 . . . . . 11 1 12 . 19 Impact Corruptions 81 | . . . . . . . 20 3 35 . 23 Robots Melted 1 | . 1 . . . . . . . . . . Combat Hostiles 1 | . 1 . . . . . . . . . . Parts Melted 4 | . 2 . . . . . . . 1 . 1 Heat Transferred 1139 | . 941 . . . . . . . 50 . 148 Parts Sabotaged . | . . . . . . . . . . . . Parts Stolen . | . . . . . . . . . . . . Parts Stripped . | . . . . . . . . . . . . Power Chain Reactions 1 | . . . . . . . . . 1 . . Missiles Intercepted . | . . . . . . . . . . . . Alert | -11 -10 -10 -9 -9 -9 -8 -8 -7 -7 -7 -6 ------- Run | Jun Mat Min Mat Min Exi Min Mat Fac Gar Fac Fac Peak Influence 853 | . 223 174 598 232 . . 444 183 853 452 251 Initial 447 | . . . 67 92 . . . 153 6 447 . Average 239 | . 104 114 351 150 . . 155 118 394 438 123 Maximum Alert Level 3 | . 1 . 2 1 . . 2 . 3 2 1 Low Security (%) 55 | . 96 100 20 85 . 100 71 100 25 2 72 Level 1 21 | . 3 . 41 14 . . 8 . 34 . 27 Level 2 18 | . . . 37 . . . 20 . 22 97 . Level 3 4 | . . . . . . . . . 17 . . Level 4 . | . . . . . . . . . . . . Level 5 . | . . . . . . . . . . . . High Security . | . . . . . . . . . . . . Max Security . | . . . . . . . . . . . . Squads Dispatched 12 | . 2 . 1 . . . 5 1 . . 3 Investigation 1 | . 1 . . . . . . . . . . Extermination 3 | . . . . . . . . 1 . . 2 Reinforcement 5 | . 1 . 1 . . . 2 . . . 1 Assault . | . . . . . . . . . . . . Garrison 3 | . . . . . . . 3 . . . . Intercept . | . . . . . . . . . . . . Searches Triggered . | . . . . . . . . . . . . Construction Impeded 1 | . . . . . . . . . . . 1 Haulers Reinforced . | . . . . . . . . . . . . Active Scanning Responses . | . . . . . . . . . . . . Cargo Convoy Interrupts 1 | . . . . . . . . . . . 1 Stealth | -11 -10 -10 -9 -9 -9 -8 -8 -7 -7 -7 -6 --------- Run | Jun Mat Min Mat Min Exi Min Mat Fac Gar Fac Fac Distress Signals 6 | . 1 . 1 . . . 3 . . . 1 Communications Jammed . | . . . . . . . . . . . . Distress Signals . | . . . . . . . . . . . . Times Spotted 168 | . 22 5 37 6 . . 40 2 18 . 38 Peak Tracking Total 12 | . 4 3 7 3 . . 8 1 6 . 12 Tactical Retreats 6 | . . . 1 . . . 3 . . . 2 Traps | -11 -10 -10 -9 -9 -9 -8 -8 -7 -7 -7 -6 ------- Run | Jun Mat Min Mat Min Exi Min Mat Fac Gar Fac Fac Traps Triggered 13 | . . . 3 . . . 1 . 5 1 3 Indirectly . | . . . . . . . . . . . . Trap Hack Attempts . | . . . . . . . . . . . . Triggered . | . . . . . . . . . . . . Disarmed . | . . . . . . . . . . . . Reprogrammed 6 | . 6 . . . . . . . . . . Reused 7 | . 2 . . . . . . . 5 . . Traps Reconfigurated 25 | . . . . . . . 6 . 19 . . Traps Extracted . | . . . . . . . . . . . . Installed . | . . . . . . . . . . . . Triggered 7 | . 2 . . . . . . . 5 . . Machines | -11 -10 -10 -9 -9 -9 -8 -8 -7 -7 -7 -6 ---------- Run | Jun Mat Min Mat Min Exi Min Mat Fac Gar Fac Fac Machines Disabled 13 | . 2 . 3 . . . 2 . 5 . 1 Max in Single Turn 2 | . 2 . 1 . . . 1 . 1 . 1 Garrison Relay 3 | . . . . . . . . . 3 . . Phase Generator 1 | . . . . . . . . . 1 . . Machines Repaired . | . . . . . . . . . . . . Machines Sabotaged . | . . . . . . . . . . . . Overloaded Fab Kills . | . . . . . . . . . . . . Hacking | -11 -10 -10 -9 -9 -9 -8 -8 -7 -7 -7 -6 --------- Run | Jun Mat Min Mat Min Exi Min Mat Fac Gar Fac Fac Machines Accessed 42 | . 7 . 11 . . . 9 3 3 2 7 Terminals 36 | . 7 . 10 . . . 7 1 3 2 6 Fabricators . | . . . . . . . . . . . . Repair Stations 4 | . . . 1 . . . 2 . . . 1 Recycling Units 1 | . . . . . . . . 1 . . . Scanalyzers . | . . . . . . . . . . . . Garrison Access 1 | . . . . . . . . 1 . . . Total Hacks 124 | . 25 . 39 . . . 28 4 5 7 16 Successful 89 | . 18 . 31 . . . 24 1 3 4 8 Failed 34 | . 7 . 7 . . . 4 3 2 3 8 Catastrophic 4 | . . . . . . . . 1 1 . 2 Database Lockouts 1 | . . . 1 . . . . . . . . Manual 59 | . 11 . 17 . 1 . 12 2 2 3 11 Terminals 113 | . 25 . 37 . . . 23 2 5 7 14 Fabricators . | . . . . . . . . . . . . Repair Stations 9 | . . . 2 . . . 5 . . . 2 Recycling Units 1 | . . . . . . . . 1 . . . Scanalyzers . | . . . . . . . . . . . . Garrison Access 1 | . . . . . . . . 1 . . . Terminal Hacks 50 | . 11 . 20 . . . 12 . 1 3 3 Record 4 | . . . 4 . . . . . . . . Robot Analysis 3 | . . . 2 . . . 1 . . . . Prototype ID Bank 5 | . 2 . 1 . . . 2 . . . . Open DSF 1 | . . . . . . . . . . . 1 Level Access Points 1 | . . . . . . . 1 . . . . Branch Access Points 4 | . 1 . 2 . . . 1 . . . . Terminal Index 4 | . 1 . 1 . . . 1 . . . 1 Repair Station Index 1 | . . . . . . . 1 . . . . Alert Level 4 | . 2 . 2 . . . . . . . . Unreport Threat 8 | . 1 . 2 . . . 2 . . 3 . Locate Traps 4 | . 1 . 1 . . . 2 . . . . Reprogram Traps 1 | . 1 . . . . . . . . . . Dispatch Records 1 | . . . 1 . . . . . . . . Surveillance Status 1 | . 1 . . . . . . . . . . Hauler Manifests 5 | . 1 . 2 . . . 1 . . . 1 Zone Layout 2 | . . . 2 . . . . . . . . Garrison Registry 1 | . . . . . . . . . 1 . . Fabricator Hacks . | . . . . . . . . . . . . Repair Station Hacks 8 | . . . 2 . . . 5 . . . 1 Scan Component 5 | . . . 1 . . . 3 . . . 1 Repair 3 | . . . 1 . . . 2 . . . . Recycling Unit Hacks . | . . . . . . . . . . . . Scanalyzer . | . . . . . . . . . . . . Garrison Access Hacks 1 | . . . . . . . . 1 . . . Unlock Access 1 | . . . . . . . . 1 . . . Unauthorized Hacks 30 | . 7 . 9 . . . 7 . 2 1 4 Terminals 30 | . 7 . 9 . . . 7 . 2 1 4 Track 3 | . 1 . 1 . . . 1 . . . . Assimilate 3 | . 2 . 1 . . . . . . . . Botnet 20 | . 4 . 5 . . . 5 . 2 1 3 Operators 4 | . . . 2 . . . 1 . . . 1 Fabricators . | . . . . . . . . . . . . Repair Stations . | . . . . . . . . . . . . Recycling Units . | . . . . . . . . . . . . Scanalyzers . | . . . . . . . . . . . . Garrison Access . | . . . . . . . . . . . . Data Cores Recovered . | . . . . . . . . . . . . Used . | . . . . . . . . . . . . Hacking Detections 32 | . 6 . 7 . . . 7 2 3 2 5 Full Trace Events 1 | . 1 . . . . . . . . . . Feedback Events . | . . . . . . . . . . . . Feedback Blocked . | . . . . . . . . . . . . Robot Schematics Acquired . | . . . . . . . . . . . . Robots Built . | . . . . . . . . . . . . Authchips . | . . . . . . . . . . . . Time . | . . . . . . . . . . . . Total Robot Build Rating . | . . . . . . . . . . . . Part Schematics Acquired . | . . . . . . . . . . . . Parts Built . | . . . . . . . . . . . . Authchips . | . . . . . . . . . . . . Time . | . . . . . . . . . . . . Total Part Build Rating . | . . . . . . . . . . . . Parts Repaired 3 | . . . 1 . . . 2 . . . . Time 108 | . . . 32 . . . 76 . . . . Parts Recycled . | . . . . . . . . . . . . Recycled Matter . | . . . . . . . . . . . . Retrieved Matter . | . . . . . . . . . . . . Retrieved Components . | . . . . . . . . . . . . Parts Scanalyzed . | . . . . . . . . . . . . Part Schematics Acquired . | . . . . . . . . . . . . Parts Damaged . | . . . . . . . . . . . . Bothacking | -11 -10 -10 -9 -9 -9 -8 -8 -7 -7 -7 -6 ------------ Run | Jun Mat Min Mat Min Exi Min Mat Fac Gar Fac Fac Used RIF Installer 1 | . . . . . . . . . 1 . . Robots Hacked . | . . . . . . . . . . . . Non-combat . | . . . . . . . . . . . . Combat . | . . . . . . . . . . . . Robot Hacks Applied . | . . . . . . . . . . . . Relay Couplers Released 15 | . . . . . . . . . 15 . . Machine Destruction 11 | . . . . . . . . . 11 . . Programmers 4 | . . . . . . . . . 4 . . Fabnet Peak Effective % . | . . . . . . . . . . . . Robots Rewired . | . . . . . . . . . . . . Allies Hacked . | . . . . . . . . . . . . Hacks Repelled . | . . . . . . . . . . . . Allies | -11 -10 -10 -9 -9 -9 -8 -8 -7 -7 -7 -6 -------- Run | Jun Mat Min Mat Min Exi Min Mat Fac Gar Fac Fac Total Allies 3 | . 2 . 1 . . . . . . . . Largest Group 3 | . 2 2 3 . . . . . . . . Highest-Rated Group 28 | . 18 18 28 . . . . . . . . Highest-Rated Ally 10 | . 10 10 10 . . . . . . . . Total Orders . | . . . . . . . . . . . . Ally Attacks . | . . . . . . . . . . . . Total Damage . | . . . . . . . . . . . . Kills . | . . . . . . . . . . . . Allies Corrupted 1 | . . . 1 . . . . . . . . Allies Melted . | . . . . . . . . . . . . Intel | -11 -10 -10 -9 -9 -9 -8 -8 -7 -7 -7 -6 ------- Run | Jun Mat Min Mat Min Exi Min Mat Fac Gar Fac Fac Robot Analysis Total 3 | . . . 2 . . . 1 . . . . Derelict Logs Recovered 1 | . . . . 1 . . . . . . . Drone Launches . | . . . . . . . . . . . . Drone Recoveries . | . . . . . . . . . . . . Exploration | -11 -10 -10 -9 -9 -9 -8 -8 -7 -7 -7 -6 ------------- Run | Jun Mat Min Mat Min Exi Min Mat Fac Gar Fac Fac Turns Passed 7992 | . 812 210 1262 291 260 63 1264 521 1800 326 1183 Spaces Moved 5054 | 1 519 166 839 225 235 58 745 297 770 295 904 Core 1 | . . . . . . . . . . . 1 Treads 190 | . . . . . . . . . 190 . . Legs 1836 | 1 296 . . . . . 745 297 497 . . Wheels 3027 | . 223 166 839 225 235 58 . . 83 295 903 Hover . | . . . . . . . . . . . . Flight . | . . . . . . . . . . . . Fastest Speed 90 | 120 105 105 95 110 110 110 90 97 97 93 93 Average Speed 119 | 120 119 105 107 110 110 110 116 160 168 100 93 Slowest Speed 450 | 120 400 105 130 110 110 110 180 183 450 105 200 Overloaded Moves . | . . . . . . . . . . . . Propulsion Burnouts . | . . . . . . . . . . . . Robots Hopped . | . . . . . . . . . . . . Cave-ins Triggered . | . . . . . . . . . . . . Exploration Rate (%) 44 | 2 77 47 81 57 62 35 59 10 74 10 20 Regions Visited 11 Branch Regions 4 Pre-discovered Areas 1 | . . . . 1 . . . . . . . Known Exits Taken 4 | . 1 . 1 . . . 1 1 . . . Unknown Exits Taken 6 | 1 . 1 . 1 1 1 . . . 1 . Scrap Searched 1 | . . . . . . 1 . . . . . Spaces Dug 11 | . . . 7 . . . 4 . . . . Terrain Destroyed 331 | . 7 80 49 . . . 66 . 103 . 26 Melee 4 | . . . . . . . 4 . . . . Projectile 2 | . . . . . . . . . . . 2 AOE 325 | . 7 80 49 . . . 62 . 103 . 24 Terrain Rammed . | . . . . . . . . . . . . Walls Destroyed . | . . . . . . . . . . . . Machines Disabled . | . . . . . . . . . . . . Actions | -11 -10 -10 -9 -9 -9 -8 -8 -7 -7 -7 -6 --------- Run | Jun Mat Min Mat Min Exi Min Mat Fac Gar Fac Fac Total 6360 | . 637 194 1044 244 236 57 1053 338 1098 328 1131 Wait 661 | . 30 20 48 7 . . 226 29 140 20 141 Move 5042 | . 518 165 838 224 234 57 744 296 768 294 904 Hop . | . . . . . . . . . . . . Pick Up 63 | . 17 1 21 . . . 10 2 7 4 1 Fast Attach 57 | . 6 . 12 . 1 . 4 4 17 2 11 Attach 39 | . 2 . 5 . . . 7 2 16 . 7 Detach 15 | . 1 . 1 . . . 1 . 10 1 1 Swap 38 | . 6 1 11 1 . . 7 . 8 1 3 Drop 74 | . 14 1 25 . 1 . 9 4 8 6 6 Fire 187 | . 43 6 83 12 . . 9 . 22 . 12 Melee 155 | . . . . . . . 36 1 73 . 45 Ram . | . . . . . . . . . . . . Kick . | . . . . . . . . . . . . Crush . | . . . . . . . . . . . . Escape Stasis 29 | . . . . . . . . . 29 . . Rewire . | . . . . . . . . . . . . Trap . | . . . . . . . . . . . . Miscellaneous . | . . . . . . . . . . . . Route ------- -11/Junkyard -10/Materials (discovered 4 exits: *Mat x2 / *Min x2) -10/Mines -9/Materials (discovered 3 exits: *Mat x2 / *Min) -9/Mines -9/Exiles -8/Mines -8/Materials (discovered 4 exits: *Fac x3 / Sto) -7/Factory (discovered 2 exits: *Fac / Gar) -7/Garrison (discovered 3 exits: *Fac x3) -7/Factory -6/Factory (discovered 2 exits: [*Fac] / [*Low]) History --------- Turn | Location | Event 1 | -11/Junkyard | Discovered new exit (range 0) 1 | -11/Junkyard | Entered Materials 426 | -10/Materials | Build established: Scavenger-Mutant 460 | -10/Materials | Identified exit to Mines 520 | -10/Materials | Discovered new exit (range 14) 698 | -10/Materials | Discovered new exit (range 16) 813 | -10/Materials | Entered Mines 813 | -10/Mines | Accompanied by 2 allies 836 | -10/Mines | Build established: Mutant 856 | -10/Mines | Core integrity fell below 50% 954 | -10/Mines | Discovered new exit (range 9) 1023 | -10/Mines | Entered Materials 1023 | -9/Materials | Accompanied by 2 allies 1023 | -9/Materials | Evolved 2 slots: Utility x2 1291 | -9/Materials | Identified exit to Mines 1345 | -9/Materials | Discovered new exit (range 16) 1360 | -9/Materials | Central database locked down 1414 | -9/Materials | Repaired Imp. Ion Engine 1524 | -9/Materials | Lost 4 parts (2n2u) 1845 | -9/Materials | Build established: Scavenger-Mutant 2016 | -9/Materials | Discovered new exit (range 7) 2146 | -9/Materials | Build established: Mutant 2285 | -9/Materials | Entered Mines 2443 | -9/Mines | Received a Rocket Launcher from a helpful Derelict 2572 | -9/Mines | Deemed a non-threat by the Exiles lab entrance 2572 | -9/Mines | Discovered new exit (range 5) 2576 | -9/Mines | Entered Exiles 2603 | -9/Exiles | Met 8R-AWN 2622 | -9/Exiles | Met EX-HEX 2655 | -9/Exiles | Met EX-BIN 2670 | -9/Exiles | Aligned with FarCom system 2671 | -9/Exiles | Given EX-Vault access code 2696 | -9/Exiles | Opened EX-Vault 2701 | -9/Exiles | Found Prototype Device 2701 | -9/Exiles | Identified Trap Reconfigurator 2726 | -9/Exiles | Warned to stay clear of 0b10 Research branches 2785 | -9/Exiles | Met EX-DEC 2824 | -9/Exiles | Discovered new exit (range 14) 2836 | -9/Exiles | Left Exiles lab with Trap Reconfigurator 2836 | -9/Exiles | Entered Mines 2891 | -8/Mines | Discovered new exit (range 8) 2899 | -8/Mines | Entered Materials 2899 | -8/Materials | Evolved 2 slots: Propulsion x2 3641 | -8/Materials | Identified exit to Factory 3736 | -8/Materials | Garrison activated, responded to threat 3896 | -8/Materials | Repaired VSS Leg 3989 | -8/Materials | Identified exit to Storage 4044 | -8/Materials | Repaired VSS Leg 4163 | -8/Materials | Entered Factory 4163 | -7/Factory | Evolved 2 slots: Power x1, Utility x1 4600 | -7/Factory | Discovered new exit (range 6) 4682 | -7/Factory | Identified exit to Garrison 4684 | -7/Factory | Entered Garrison 4702 | -7/Garrison | Triggered checkpoint 4714 | -7/Garrison | Garrison Relay disabled 4935 | -7/Garrison | Lost 7 parts (2p4n1u) 4986 | -7/Garrison | Triggered checkpoint 5102 | -7/Garrison | Triggered checkpoint 5234 | -7/Garrison | Triggered checkpoint 5253 | -7/Garrison | Build established: Scavenger-Mutant 5285 | -7/Garrison | Garrison Relay disabled 5411 | -7/Garrison | Discovered new exit (range 13) 5425 | -7/Garrison | Discovered new exit (range 44) 5425 | -7/Garrison | Discovered new exit (range 61) 5425 | -7/Garrison | Discovered new exit (range 11) 5602 | -7/Garrison | Triggered checkpoint 5655 | -7/Garrison | Lost 3 parts (2n1u) 5801 | -7/Garrison | Core integrity fell below 50% 5852 | -7/Garrison | System corruption reached 10% 5854 | -7/Garrison | Lost 6 parts (1p2n1u2w) 5996 | -7/Garrison | Phase Generator disabled 6045 | -7/Garrison | Garrison Relay disabled 6101 | -7/Garrison | Attempted to access garrison exit controls, blocked by remote lockdown 6182 | -7/Garrison | Triggered checkpoint 6265 | -7/Garrison | Spotted B-75 Beast 6296 | -7/Garrison | Installed Relay Interface Framework 6484 | -7/Garrison | Entered Factory 6781 | -7/Factory | Discovered new exit (range 11) 6810 | -7/Factory | Entered another Factory area 6810 | -6/Factory | Evolved 2 slots: Utility x2 6981 | -6/Factory | Build established: Mutant 7538 | -6/Factory | Discovered new exit (range 14) 7600 | -6/Factory | Discovered new exit (range 7) 7910 | -6/Factory | Cargo convoy interrupted 7923 | -6/Factory | System corruption reached 10% 7940 | -6/Factory | Core integrity fell below 50% 7965 | -6/Factory | Core integrity fell below 20% 7976 | -6/Factory | Lost 11 parts (2p3n3u3w) 7993 | -6/Factory | Destroyed by P-60 Hacker with Shock Rifle Last Messages --------------- 07966_ System corrupted: Particle Reactor rejected. 07970_ Penetrated by Slug. 07974_ Acquired Phase Cannon. 07978_ P-60 Hacker destroyed. 07979_ Slug penetrates Door. 07979_ Slug penetrates Wall. 07980_ Destroyed Shock Rifle. 07980_ Critical hit (Burn: +37). 07982_ Slug penetrates Wall. 07984_ Destroyed Gravmag System. 07985_ R-10 Processor collects Gravmag System. 07986_ Penetrated by Slug. 07986_ Arm. Huge Wheel destroyed. 07986_ U-05 Engineer builds a Wall. 07988_ Slug penetrates Wall. 07989_ Penetrated by Slug. 07990_ U-05 Engineer builds a Wall. 07992_ Penetrated by Slug. 07992_ Acquired Plasma Rifle. 07992_ K-01 Serf collects debris. Map ----- +----------------------------------------------------+ | ??????????????????#+##/##+###### + # " | | ??????????????????# ***# ! # # " | | ??????????????????# * *# #% # " | | ??????????????????# """ """ ############# # " | | ??????????????????# """ """ #????# # # | | ??????????????????# """ """ #????# """ # # | | ??????????????????# %#????# """ #% # | | ??????????????????# """ """ #????# """ | | ??????????????????# """ """ #????# # | | ??????????????????# """ """ #????# """ # # | | ??????????????????# #????# """ # ### | | ??????????????????# #????# """ # | | ??????????????????#[ % #????# # | | ??????????###?###########+########### # % | | ?????????? ?? # R / " / # | | ?????????# ] ?= # i #g "# ## | | ?????????# ? # h # ""%# # | | ?????????# # k # %%""# # | | ?????????# """" # pguh * ###/"### # | | ?????????# """" # ####x#### # # # | | ?????????# """" # # uu # # # #? | | ?????????# """" # %=# u = ]# # # #? | | ########## """" # # % # # # #? | | # """" # # u # # # #?? | | "" """ # """" + p # # # #?? | | "" """ # # # @ # # [ # #?? | | "" """ # # # # # # #?? | | ######## #! # # # #?? | | "" """ # #! # + + #?? | | "" """ # # # # # #?? | | "" """ # # # # !! # #?? | | + ######### # ! ! #? #?? | | # #?????? # !! #?? #?? | | ! # ###+######???+####+##########???#?? | | # # """ #????????????????????????? | | ########## # "R" #????????????????????????? | | ?????????# # " " #????????????????????????? | | ?????????# # #????????????????????????? | | ?????????# # #????????????????????????? | | ?????????# #""" #????????????????????????? | | ?????????# #""" #????????????????????????? | | ??######## #""" #????????????????????????? | | ??# # #????????????????????????? | | ??# ##########????????????????????????? | | ??# #?????????????????????????????????? | | ??# #?????????????????????????????????? | | ??# #?????????????????????????????????? | | ??# ###+############?????????????????????????? | | ### # ] !#?????????????????????????? | | #] #?????????????????????????? | +----------------------------------------------------+ Best States ------------- Heat Dissipation 38 Energy Generation 37 Energy Capacity 555 Matter Stores 300 Matter Capacity 300 Sight Range 16 Terrain Scan Density 185 Additional Mass Support 9 Armor Coverage 375 Resistance: KI 20 Resistance: TH 20 Resistance: EM 15 Propulsion Shielding 66 Utility Shielding 33 Evasion (%) 57 Targeting Accuracy 6 Melee Accuracy 11 Target Analysis 9 Recoil Reduction 2 Offensive Hacking 10 Item Schematics ----------------- None Robot Schematics ------------------ None Fabricated ------------ Nothing Alien Tech Used ----------------- None Achievements -------------- None Challenges ------------ None Game ------ Seed AbsorptionSignalBoosters Manual? 0 Play Time 01:55:32 Cumulative 249.1 hours Start 2023.03.04 @ 20:27:45 End 2023.03.06 @ 20:40:23 Sessions 3 Manual Loads 0 Difficulty Rogue Special Mode None Game No. 114 Rogue 107 Adventurer 0 Explorer 7 Win Type - Total 2 Types 1/0/1/0/0/0/0/0/0 Lore% 62 Gallery% 64 Achievement% 53 Wizard Run 0 Options --------- ASCII 0 Keyboard 0 Movement Mouse Keybinds 0 Fullscreen 1 Font 18/SmallcapsGlow Map View 76x50 Tactical HUD 1 Map Filters NONE Filters NONE Steam 1 RUN: 5be6ff9f-1faf-4ca7-aaf5-f420a7567abe